{"text_format":"3","workbook":"xlsx","n_sheets":11,"sheets":["Capacidad Jurídica","Técnico-Experiencia General","Técnico-Experiencia Específica","Técnico-Personal","Técnico- Cartas de fábrica","Financiero","Ponderables","Precio","Factor técnico","Puntajes","Estímulo-Discap-Empren"],"read":"whole","date_system":"1900"}

{"sheet":"Capacidad Jurídica","index":0,"n_rows":72,"n_cols":14,"rows_kept":72,"merged":[[0,0,1,1],[0,2,0,13],[1,2,1,6],[1,7,1,13],[2,0,3,1],[2,2,2,4],[2,5,4,5],[2,6,4,6],[2,7,2,11],[2,12,4,12],[2,13,4,13],[3,4,4,4],[3,11,4,11],[5,2,5,3],[5,7,5,10],[6,2,6,3],[7,0,8,0],[52,2,52,3],[52,7,52,10],[53,2,53,3],[53,7,53,10],[66,0,69,0],[66,2,66,3],[66,7,66,10],[67,2,67,3],[67,7,67,10],[68,2,68,3],[68,7,68,10],[69,2,69,3],[69,7,69,10],[70,2,70,3],[70,7,70,10],[71,0,71,1],[71,2,71,6],[71,7,71,13]]}
["FECHA Y HORA DE CIERRE DEL PROCESO: 17 DE SEPTIEMBRE DE 2025 A LAS 2:00 PM"]
[null,null,"OFERENTE 2",{"$nulls":4},"OFERENTE 3"]
["REQUISITOS DE PARTICIPACIÓN Y HABILITACIÓN JURÍDICA",null,"UNION TEMPORAL GESTIÓN INTEGRAL C5 \n(2 INTEGRANTES) \nRAD 20251005956",null,null,"OBSERVACIÓN","REQUERIDO","UNIÓN TEMPORAL SEGURIDAD VIPE 2025\n(4 INTEGRANTES) \nRAD 20251005957",{"$nulls":4},"OBSERVACIÓN","REQUERIDO"]
[null,null,"UNION ELECTRICA S.A. (4%)\nNIT: 890.937.250-6","SEGURITECH COLOMBIA S.A.S (96%)\nNIT: 901.202.687-5","FOLIO FÍSICO\nN° REFOLIACIÓN ESU\n",null,null,"ESDRAS MD INGENIERIA  S.A.S\nNIT: 900.595.482-4\n(25%)","INGENIERIA Y TELEMATICA  G&C\nNIT: 800.072.172-9\n(25%)","VIOTEC S.A.S\nNIT: 900.317.089-1\n(25%) ","PAECIA S.A.S\nNIT: 890.929.487-0\n(25%)","FOLIO FÍSICO\nN° REFOLIACIÓN ESU\n"]
["UBICACIÓN PLIEGO","DESCRIPCIÓN REQUISITO","APORTADO","APORTADO",{"$nulls":3},"APORTADO","APORTADO","APORTADO","APORTADO"]
["3.2.1\n (ANEXO N° 1)","Carta de presentación:","SI",null,"3-5","R. L UT Diana Carolina Lancheros Paredes\nCC. 52.844.405\n\nR.L.S UT Carlos Frank Benítez Rodríguez\nCC,98.702.829\n","NO","SI",{"$nulls":3},"1055-1057","R.L. Cesar Augusto Peñaloza Correa\nCC. 10186775\n\nR.L.S. Jorge Iván Arroyave Zapata\nCC. 89009911","NO"]
["3.2.2","Copia de la cédula","SI",null,"14, 16 y 18","R.L UNIÓN ELÉCTRICA: Julio Cesar Correa Mazo\nC.C. 18.464.212\n\nR.L SEGURITECH: Diana Carolina Lancheros Paredes\nCC. 52.844.405","NO","SI","SI","SI","SI","1059-1062","R.L. ESDRAS: Lady Vanessa Pabón Triana\nCC. 67021471\nR.L: GYC: Cesar Augusto Peñaloza Correa\nCC. 10186775\nR.L. VIOTEC: Jorge Iván Arroyave Zapata\nCC. 89009911\nR.L. PAECIA: Andrés Felipe Espinosa Arango\nCC. 71792037","NO"]
["3.2.3","Certificado de existencia y representación legal (Con fecha no anterior a 1 mes a la fecha del cierre).","SI","SI","UE 28-38R/SC40-44REVERSO","UE:22/08/2025\nSC:05/09/2025","NO","SI","SI","SI","SI","ESDRAS:1065-1072\nVIOTEC: 1076-1085\nGYC: 1087-1098\nPAECIA: 1100-1107","ESDRAS:09/09/2025\nVIOTEC: 04/09/2025\nGYC:25/08/2025\nPAECIA:01/09/2025","NO"]
[null,"Certificado de autorización para contratar, cuando aplique.","N/A","SI","UE 31/SC: 46-47","Ninguna","NO","SI","N/A","N/A","N/A","ESDRAS:1073-1074\nGYC: N/A\nVIOTEC: N/A\nPAECIA: N/A","Ninguna","NO"]
["3.2.4","Registro Único Tributario-RUT","SI","SI","UE 50-54/SC 56-58","Ninguna","NO","SI","SI","SI","SI","ESDRAS: 119\nVIOTEC: 1121\nGYC: 1117\nPAECIA: 1123","Ninguna","NO"]
["3.2.5  (ANEXO N° 3)","Acreditación Certificación de Pagos de sistema de Seguridad Social Integral y Parafiscales","SI","SI","UE 61-73/SC 75-81","UE: Revisora fiscal\nELIANA MEJÍA BEDOYA\nCC. 43115120\nT.P. 181150-T\nJCC: 28/08/2025\n\nSEG: Revisor fiscal\nJAVIER ISIDRO REYES PEDRAZA\nCC. 80773731\nT.P. 246176-T\nJCC: 23/07/2025","NO","SI","SI","SI","SI","ESDRAS: 1135-1138\nVIOTEC: 1125-1128\nGYC: 1130-1133\nPAECIA: 1140-1143","ESDRAS: Revisora fiscal\nShirley Niño Camacho\nCC. 29331625\nTP. 95213-T\nJCC14/08/2025\n\nVIOTEC: Revisor fiscal\nWilmer Alexander Alonso Gómez\nCC. 1015405577\nTP. 220017-T\nJCC: 05/09/2025\n\nGYC: Revisor fiscal\nJuan Carlos Martínez Borre\nCC. 19752550\nTP. 124605-T\nJCC: 02/09/2025\n\nPAECIA: Revisor fiscal\nHoracio Guardia Machado\nCC. 15401805\nTP. 46089-T\nJCC: 15/08/2025","NO"]
["3.2.6 (+ADENDA N°3): A continuación se relacionan los códigos del 1 al 40 (ANEXO N°4)","Registro Único de Proponentes – RUP: Para el caso de proponentes plurales, el proponente en su conjunto deberá acreditar estar inscrito en mínimo 15 de los códigos descritos.","SI","SI","UNIÓN ELÉCTRICA  RUP (86-258)\t\nSEGURITECH     RUP(259-312)\nANEXO N°4:84-85/260-262 ","UE37/ SEG 40 \nCÓDIGOS REPORTADOS\n","NO","SI","SI","SI","SI","ESDRAS:  1149 - 1179\t\nG&C SAS: 1181 - 1230\t\nVIOTEC: 1232 - 1262\t\nPAECIA: 1264 - 1394\nANEXO N°:1145-147","ESDRAS:31\nG&C SAS:39\nVIOTEC: 33\nPAECIA:33 CÓDIGOS REPORTADOS\n","NO"]
[1,"26121600: Cables eléctricos y accesorios","SI","SI","UE(88)/SEG(266)","Ninguna","NO","SI","SI","SI","SI","ESDRAS: 1151\nG&C SAS: 1185\nVIOTEC SAS:1233 REVERSO\nPAECIA SAS: 1268","Ninguna","NO"]
[{"$f":"A13+1","v":2},"30161500: Materiales para acabados de paredes","SI","SI","UE(89)SEG(267)","Ninguna","NO","SI","SI","SI","SI","ESDRAS: 1151 REVERSO\nG&C SAS: 1185 REVERSO\nVIOTEC SAS:1234\nPAECIA SAS: 1269","Ninguna","NO"]
[{"$f":"A14+1","v":3},"30161700: Suelos","SI","SI","UE(89)SEG(267)","Ninguna","NO","SI","SI","SI","SI","ESDRAS: 1151 REVERSO\nG&C SAS: 1185 REVERSO\nVIOTEC SAS:1234\nPAECIA SAS: 1269","Ninguna","NO"]
[{"$f":"A15+1","v":4},"30162400: Muros divisorios","SI","SI","UE(89)SEG(267)","Ninguna","NO","SI","SI","SI","SI","ESDRAS: 1151 REVERSO\nG&C SAS: 1185 REVERSO\nVIOTEC SAS:1234\nPAECIA SAS: 1269","Ninguna","NO"]
[5,"30171500: Puertas","SI","SI","UE(89)SEG(267)","Ninguna","NO","SI","SI","SI","SI","ESDRAS: 1151 REVERSO\nG&C SAS: 1185 REVERSO\nVIOTEC SAS:1234\nPAECIA SAS: 1269","Ninguna","NO"]
[6,"30171600: Ventanas","SI","SI","UE(89)SEG(268)","Ninguna","NO","SI","SI","NO","SI","ESDRAS: 1151 REVERSO\nG&C SAS: 1186\nVIOTEC SAS: NA\nPAECIA SAS: 1269","Ninguna","NO"]
[7,"301916 00: Escaleras y accesorios de andamiaje","SI","SI","UE(89)SEG(268)","Ninguna","NO","SI","SI","NO","SI","ESDRAS: 1151 REVERSO\nG&C SAS: 1186\nVIOTEC SAS: NA\nPAECIA SAS: 1269","Ninguna","NO"]
[8,"31211500: Pinturas y tapa poros","SI","SI","UE(89)SEG(268)","Ninguna","NO","NO","SI","NO","SI","ESDRAS: NA\nG&C SAS: 1186\nVIOTEC SAS:NA\nPAECIA SAS: 1270 REVERSO","Ninguna","NO"]
[9,"31211900: Aplicadores de pintura y accesorios","SI","SI","UE(89)SEG(268)","Ninguna","NO","NO","NO","NO","SI","ESDRAS:  NA\nG&C SAS:  NA\nVIOTEC SAS: NA\nPAECIA SAS: 1270 REVERSO","Ninguna","NO"]
[10,"39111500: Iluminación de interiores y artefactos","SI","SI","UE(89)SEG(269)","Ninguna","NO","SI","SI","NO","SI","ESDRAS: 1151 REVERSO\nG&C SAS: 1186 REVERSO\nVIOTEC SAS: NA\nPAECIA SAS: 1271 REVERSO","Ninguna","NO"]
[11,"40101700: Enfriamiento","SI","SI","UE(90)SEG(270)","Ninguna","NO","SI","SI","SI","SI","ESDRAS: 1152\nG&C SAS: 1187 REVERSO\nVIOTEC SAS:1234 REVERSO\nPAECIA SAS: 1272","Ninguna","NO"]
[12,"43201800: Dispositivos de almacenamiento","SI","SI","UE(90)SEG(271)","Ninguna","NO","SI","SI","SI","NO","ESDRAS: 1152\nG&C SAS: 1188 REVERSO\nVIOTEC SAS:1235\nPAECIA SAS: NA","Ninguna","NO"]
[13,"43211700: Dispositivos informáticos de entrada de datos","SI","SI","UE(90)SEG(272)","Ninguna","NO","NO","SI","SI","SI","ESDRAS: NA\nG&C SAS: 1188 REVERSO\nVIOTEC SAS:1235\nPAECIA SAS: 1273 REVERSO","Ninguna","NO"]
[14,"43212200: Sistemas de manejo de almacenamiento de datos de computador","SI","SI","UE(90)SEG(272)","Ninguna","NO","NO","SI","SI","SI","ESDRAS: NA\nG&C SAS: 1188 REVERSO\nVIOTEC SAS:1235\nPAECIA SAS: 1273 REVERSO","Ninguna","NO"]
[15,"43221700: Equipo fijo de red y componentes","SI","SI","UE(90)SEG(272)","Ninguna","NO","NO","SI","SI","SI","ESDRAS: NA\nG&C SAS: 1189\nVIOTEC SAS:1235 REVERSO\nPAECIA SAS: 1273 REVERSO","Ninguna","NO"]
[16,"43222600: Equipos de servicios de red","SI","SI","UE(90)SEG(272)","Ninguna","NO","SI","SI","SI","SI","ESDRAS: 1152\nG&C SAS: 1189\nVIOTEC SAS:1235 REVERSO\nPAECIA SAS: 1273 REVERSO","Ninguna","NO"]
[17,"43223300: Dispositivos y equipos para instalación de conectividad de redes y datacom","SI","SI","UE(90)SEG(272)","Ninguna","NO","NO","SI","SI","SI","ESDRAS: NA\nG&C SAS: 1189\nVIOTEC SAS:1235 REVERSO\nPAECIA SAS: 1274","Ninguna","NO"]
[18,"43232800: Software de administración de redes","SI","SI","UE(90)SEG(272)","Ninguna","NO","NO","SI","SI","NO","ESDRAS: NA\nG&C SAS: 1189 REVERSO\nVIOTEC SAS:1235 REVERSO\nPAECIA SAS: NA","Ninguna","NO"]
[19,"43233200: Software de seguridad y protección","SI","SI","UE(90)SEG(272)","Ninguna","NO","NO","SI","SI","NO","ESDRAS: NA\nG&C SAS: 1189 REVERSO\nVIOTEC SAS:1235 REVERSO\nPAECIA SAS: NA","Ninguna","NO"]
[20,"45121500: Cámaras","SI","SI","UE(91)SEG(273)","Ninguna","NO","SI","SI","SI","SI","ESDRAS: 1152\nG&C SAS: 1189 REVERSO\nVIOTEC SAS:1236\nPAECIA SAS: 1274","Ninguna","NO"]
[21,"45121600; Accesorios para cámaras","SI","SI","UE(91)SEG(273)","Ninguna","NO","SI","SI","SI","SI","ESDRAS: 1152\nG&C SAS: 1190\nVIOTEC SAS:1236\nPAECIA SAS: 1274","Ninguna","NO"]
[22,"46171600: Equipo de vigilancia y detección","SI","SI","UE(91)SEG(273)","Ninguna","NO","SI","SI","SI","SI","ESDRAS: 1152\nG&C SAS: 1190\nVIOTEC SAS:1236\nPAECIA SAS: 1274","Ninguna","NO"]
[23,"72102900: Servicios de mantenimiento y  reparación de instalaciones","SI","SI","UE(91)SEG(274)","Ninguna","NO","SI","SI","SI","NO","ESDRAS: 1152 REVERSO\nG&C SAS: 1191\nVIOTEC SAS:1236 REVERSO\nPAECIA SAS: NA","Ninguna","NO"]
[24,"72103300: Servicios de mantenimiento y reparación de infraestructura","SI","SI","UE(91)SEG(274)","Ninguna","NO","SI","SI","SI","SI","ESDRAS: 1152 REVERSO\nG&C SAS: 1191\nVIOTEC SAS:1236 REVERSO\nPAECIA SAS: 1275","Ninguna","NO"]
[25,"72141500: Servicios de preparación de tierras","SI","SI","UE(91)SEG(274)","Ninguna","NO","SI","SI","SI","SI","ESDRAS: 1153\nG&C SAS: 1191 REVERSO\nVIOTEC SAS:1235 REVERSO\nPAECIA SAS: 1275 REVERSO","Ninguna","NO"]
[26,"72151600: Servicios de sistemas especializados","SI","SI","UE(91)SEG(275)","Ninguna","NO","SI","SI","SI","SI","ESDRAS: 1153\nG&C SAS: 1191 REVERSO\nVIOTEC SAS:1236 REVERSO\nPAECIA SAS: 1275 REVERSO","Ninguna","NO"]
[27,"80101600: Gerencia de proyectos","SI","SI","UE(92)SEG(276)","Ninguna","NO","SI","SI","SI","SI","ESDRAS: 1154\nG&C SAS: 1193\nVIOTEC SAS:1237\nPAECIA SAS: 1276 REVERSO","Ninguna","NO"]
[28,"81101700: Ingeniería eléctrica y electrónica","SI","SI","UE(92)SEG(276)","Ninguna","NO","SI","SI","SI","SI","ESDRAS: 1154\nG&C SAS: 1193\nVIOTEC SAS:1237\nPAECIA SAS: 1277","Ninguna","NO"]
[29,"81111500: Ingeniería de software o hardware","SI","SI","UE(92)SEG(276)","Ninguna","NO","SI","SI","SI","NO","ESDRAS: 1154\nG&C SAS: 1193\nVIOTEC SAS:1237 REVERSO\nPAECIA SAS: NA","Ninguna","NO"]
[30,"81111800: Servicios de sistema y administración","SI","SI","UE(92)SEG(276)","Ninguna","NO","SI","SI","SI","SI","ESDRAS: 1154\nG&C SAS: 1193 REVERSO\nVIOTEC SAS:1237 REVERSO\nPAECIA SAS: 1277","Ninguna","NO"]
[31,"81112200: Mantenimiento y  soporte de software","SI","SI","UE(92)SEG(276)","Ninguna","NO","NO","SI","SI","NO","ESDRAS: NA\nG&C SAS: 1193 REVERSO\nVIOTEC SAS:123 67 REVERSO\nPAECIA SAS: NA","Ninguna","NO"]
[32,"92121700: Servicios de sistemas de seguridad","SI","SI","UE(92)SEG(277)","Ninguna","NO","SI","SI","SI","NO","ESDRAS: 1154 REVERSO\nG&C SAS: 1194\nVIOTEC SAS:1237 REVERSO\nPAECIA SAS: NA","Ninguna","NO"]
[33,"72121400: Servicios de construcción  de edificios públicos especializados","SI","SI","UE(96)SEG(274)","Ninguna","NO","SI","SI","SI","SI","ESDRAS: 1152 REVERSO\nG&C SAS: 1191 REVERSO\nVIOTEC SAS:1236 REVERSO\nPAECIA SAS: 1275 REVERSO","Ninguna","NO"]
[34,"72141100: Servicios de pavimentación y superficies de edificios de infraestructura","SI","SI","UE(91)SEG(274)","Ninguna","NO","SI","SI","SI","SI","ESDRAS: 1152 REVERSO\nG&C SAS: 1191 REVERSO\nVIOTEC SAS:1236 REVERSO\nPAECIA SAS: 1275 REVERSO","Ninguna","NO"]
[35,"72121000: Servicios de construcción de edificios industriales y bodegas nuevas","NO","SI","SEG(274)","Ninguna","NO","SI","SI","NO","SI","ESDRAS: 1152 REVERSO\nG&C SAS: 1191 REVERSO\nVIOTEC SAS:NA\nPAECIA SAS: 1275","Ninguna","NO"]
[36,"72121100: Servicios de construcción de edificios comerciales y de oficina","SI","SI","UE(91)SEG(274)","Ninguna","NO","SI","SI","SI","SI","ESDRAS: 1152 REVERSO\nG&C SAS: 1191 REVERSO\nVIOTEC SAS:1236 REVERSO\nPAECIA SAS: 1275 ","Ninguna","NO"]
[37,"72151200: Servicios de construcción y mantenimiento de HVAC calefacción y enfriamiento y aire acondicionado","SI","SI","UE(91)SEG(274)","Ninguna","NO","SI","SI","NO","SI","ESDRAS: 1153\nG&C SAS: 1191 REVERSO\nVIOTEC SAS:NA\nPAECIA SAS: 1275 REVERSO","Ninguna","NO"]
[38,"72151300: Servicios de pintura e instalación de papel de colgadura","NO","SI","SEG(275)","Ninguna","NO","SI","SI","SI","SI","ESDRAS: 1153\nG&C SAS: 1191 REVERSO\nVIOTEC SAS:1236 REVERSO\nPAECIA SAS: 1275 REVERSO","Ninguna","NO"]
[39,"72151400: Servicios de construcción de recubrimientos de muros","NO","SI","SEG(275)","Ninguna","NO","SI","SI","SI","SI","ESDRAS: 1153\nG&C SAS: 1191 REVERSO\nVIOTEC SAS:1236 REVERSO\nPAECIA SAS: 1275 REVERSO","Ninguna","NO"]
[40,"72151500: Servicios de sistemas eléctricos","SI","SI","UE(91)SEG(275)","Ninguna","NO","SI","SI","SI","SI","ESDRAS: 1153\nG&C SAS: 1191 REVERSO\nVIOTEC SAS:1236 REVERSO\nPAECIA SAS: 1275 REVERSO","Ninguna","NO"]
["3.2.8 (+ADENDA N°3)","Garantía para cubrir los riesgos derivados del incumplimiento del ofrecimiento: Se deberá anexar garantía de seriedad de la propuesta, a favor de la “EMPRESA PARA LA SEGURIDAD Y SOLUCIONES URBANAS – ESU”, con NIT. 890.984.761-8, constituida ante una compañía de seguros o entidad bancaria legalmente establecida en Colombia, o patrimonio autónomo, y que contenga los siguientes aspectos:\n● Valor asegurado: Equivalente al diez por ciento (10%) del presupuesto oficial correspondiente a la primera orden de compra, esto es $180.996.349.096\n● Vigencia: Tres (3) meses, contados a partir de la fecha de cierre del proceso contractual.\n● Tomador y/o afianzado: La garantía deberá tomarse con el nombre o razón social que figura en el Certificado de Existencia y Representación Legal expedido por la Cámara de Comercio.\n● Asegurado y beneficiario: Empresa para la Seguridad y Soluciones Urbanas – ESU.\nObjeto y numero del proceso.\n● Firmas del tomador y de la aseguradora que la expide.","SI",null,"314-327","N° PÓLIZA: 18-44-101108882\nSEGUROS DEL ESTADO S.A.\nVALOR: $18.099.634.909,60\nVIGENCIA: DEL 10/09/2025 AL 31/12/2025\n\nCOASEGURO: \nSEGUROS DEL ESTADO S.A. 50%\nCOMPAÑÍA MUNDIAL DE SEGUROS S.A. 50%\n\nPóliza verificada en https:https://consultapoliza.segurosdelestado.com/consultapoliza/","NO","SI",{"$nulls":3},"1441-1473","N° PÓLIZA:NB-100404363\nCOMPAÑÍA MUNDIAL DE SEGUROS S.A. \nVALOR $18.099.634.909,60\nVIGENCIA:  DEL 15/09/2025 AL 30/12/2025 (ANEXO 4)\n\nCOASEGURO:\nBERKLEY INTERNATIONAL SEGUROS COLOMBIA S.A. 50%\nCOMPAÑÍA MUNDIAL DE SEGUROS S.A. 50%\n\nhttps://productos.mundialseguros.com.co/","NO"]
["3.2.9","Aval de la propuesta: Profesional en Ingeniería eléctrica, electrónica, sistemas, telemática, informática, telecomunicaciones y afines/Ingeniería civil","SI",null,"3-11/330-336","Diego Alberto Osorio Benítez\nCC.70.085.746\nIngeniero Civil\nT.P  N° 05202-58961\nVigencia: 02/09/2025\n\nLucas Toro Morales\nCC. 71270457\nIngeniero Electrónico\nT.P  N° AN206-96710\nVigencia: 02/09/2025 seis (6) meses ","NO","SI",{"$nulls":3},"1055-1057/1475-1480","\nCesar Augusto Peñaloza Correa\nCC.10186775\nIngeniero Electrónico\nT.P  CN206-54885\nVigencia: 07/06/2025\n\nAngie Paola Urrego Durango\nCC. 1001140303\nIngeniero Civil\nM.P 011037-06499292\nVigencia: 15/08/2025","NO"]
["3.2.10","Certificado de Procuraduría General de la Nación (Con fecha no anterior a 1 mes de la fecha del cierre).","SI","SI","UE: 433-434\nSC: 436-437","UE: 01/09/2025\nSC: 01/09/2025","NO","SI","SI","SI","SI","ESDRAS: 1415-1416\nG&C SAS:1407-1408\nVIOTEC SAS: 1399-1400\nPAECIA SAS:  1423-1424","ESDRAS: 05/09/2025\nG&C SAS: 01/09/2025\nVIOTEC SAS: 01/09/2025\nPAECIA SAS: 05-04/09/2025","NO"]
["3.2.11","Certificado de Contraloría General de la Nación (Con fecha no anterior a 1 mes de la fecha del cierre).","SI","SI","UE:  424-425\nSC: 427-428","UE: 01/09/2025\nSC: 01/09/2025","NO","SI","SI","SI","SI","ESDRAS: 1413-1414\nG&C SAS: 1405-1406\nVIOTEC SAS: 1397-1398\nPAECIA SAS: 1421-1422","ESDRAS: 05/09/2025\nG&C SAS: 25/08/2025\nVIOTEC SAS: 25/08/2025\nPAECIA SAS: 05-04/09/2025","NO"]
["3.2.12","Certificado de antecedentes judiciales (Con fecha no anterior a 1 mes de la fecha del cierre).","SI","SI","UE: 442\nSC: 444","UE: 01/09/2025\nSC: 01/09/2025","NO","SI","SI","SI","SI","ESDRAS: 1417\nG&C SAS: 1409\nVIOTEC SAS: 1401\nPAECIA SAS: 1425","ESDRAS: 05/09/2025\nG&C SAS: 25/08/2025\nVIOTEC SAS: 25/08/2025\nPAECIA SAS: 04/09/2025","NO"]
["3.2.13","Certificado del Registro Nacional de Medidas Correctivas-RNMC, donde conste que a la persona o representante legal no le han sido impuestas multas por infracción del Código de Policía o, si presenta multas (Con fecha no anterior a 1 mes de la fecha del cierre).","SI","SI","UE: 449-450\nSC: 452-453","UE: 02-01/09/2025\nSC: 01/09/2025","NO","SI","SI","SI","SI","ESDRAS: 1418-1419\nG&C SAS: 1410-1411\nVIOTEC SAS: 1404-1403\nPAECIA SAS: 1426-1427","ESDRAS: 05/09/2025\nG&C SAS: 25/08/2025\nVIOTEC SAS: 25/08/2025\nPAECIA SAS: 04/09/2025","NO"]
["3.2.14","Certificado de la Consulta de Inhabilidades de la Ley 1918 de 2018 y Decreto 753 de 2019 del representante legal de la empresa (Con fecha no anterior a 1 mes de la fecha del cierre).","SI","SI","UE: 378\nSC: 380","UE: 01/09/2025\nSC: 04/09/2025","NO","SI","SI","SI","SI","ESDRAS: 1485\nG&C SAS: 1482\nVIOTEC SAS: 1483\nPAECIA SAS: 1484","ESDRAS: 05/09/2025\nG&C SAS: 25/08/2025\nVIOTEC SAS: 25/08/2025\nPAECIA SAS: 09/09/2025","NO"]
["3.2.15 (ANEXO 5)","Documentación para acreditar la implementación del sistema de gestión de seguridad en el trabajo (SG-SST): encontrándose una calificación Aceptable (85%)","SI","SI","381-419","Evaluación satisfactoria","NO","SI","SI","SI","SI","1486-1613","Evaluación satisfactoria","NO"]
["3.2.21","Certificado Registro de Deudores Alimentarios Morosos- REDAM (Con fecha no anterior a 30 días calendario 19/08/2025).","SI","SI","UE: 468\nSC: 470","UE: 01/09/2025\nSC: 23/08/2025","NO","SI","SI","SI","SI","ESDRAS: 1617\nG&C SAS: 1618\nVIOTEC SAS: 1615\nPAECIA SAS: 1616","ESDRAS: 05/09/2025\nG&C SAS: 25/08/2025\nVIOTEC SAS: 25/08/2025\nPAECIA SAS: 02/09/2025","NO"]
["3.2.22 (ANEXO N° 24)","Formato de autorización de tratamiento de datos personales conforme a la ley 1581 de 2012 y el decreto 1074 de 2015  ","SI","SI","UE: 476-478\nSC: 480-481","Ninguna","NO","SI","SI","SI","SI","ESDRAS: 1628-1629\nG&C SAS: 1620-1622\nVIOTEC SAS: 1623-1625\nPAECIA SAS: 1626-1627","Ninguna","NO"]
["3.2.23","Certificado de Reciprocidad: Si el proponente es extranjero, podrá aportar el certificado de reciprocidad conforme a lo establecido en el artículo 20 de la Ley 80 de 1993.","NA","NA","NA","Ninguna","NO","N/A","N/A","N/A","N/A","N/A","N/A","NO"]
["3.2.24","Diligenciar ANEXO N° 6 CERTIFICADO DE INHABILIDADES E INCOMPATIBILIDADES","SI","SI","UE: 486\nSC: 488","Ninguna","NO","SI","SI","SI","SI","ESDRAS: 1632\nG&C SAS: 1633\nVIOTEC SAS: 1631\nPAECIA SAS: 1634","Ninguna","NO"]
["3.2.25 (+ADENDA N°3)","Registro de productores y comercializadores de equipos tecnológicos para la vigilancia y seguridad privada, así:\nLos oferentes deberán aportar copia de la Resolución de inscripción en el Registro de Productores y Comercializadores de Equipos Tecnológicos para la Vigilancia y Seguridad Privada en las secciones de: instalación y comercialización: El certificado de Multas y Sanciones vigente deberá ser presentado por el oferente adjudicatario en el cual conste que no registra multas o sanciones impuestas por parte de la Superintendencia de Vigilancia y Seguridad Privada.\nEn caso de que se trate de consorcios o uniones temporales o cualquier otro tipo de forma asociativa, la copia de la Resolución de inscripción en el registro de Productores o Comercializadores de Equipos tecnológicos para la Vigilancia y Seguridad Privada en las secciones de instalación y comercialización deberá ser aportado por uno de los integrantes del consorcio, unión temporal o forma asociativa.","NO","SI","SC: 490-493","Ninguna","NO","NO","SI","SI","NO","ESDRAS: N/A\nG&C SAS: 1860-1862 \nVIOTEC SAS: 1863-1869 \nPAECIA SAS: N/A","Ninguna","NO"]
["3.3.5","El participante deberá acreditar por lo menos cinco (5) años de trayectoria en el mercado, a través de la fecha de la matricula del registro mercantil sede principal. ASI mismo deberá diligenciar el ANEXO N°-11 TRAYECTORIA. En caso de que el oferente se presente como consorcio o unión temporal o cualquier forma asociativa, cada uno de los que conforman la misma, deberá acreditar este requisito (ANEXO N°-11)","SI","SI","UE 645,646-656 (22/08/2025)\nSC:658,659-663 (5/09/2025)","Ninguna","NO","SI","SI","SI","SI","ESDRAS: 1874\nG&C SAS: 1872\nVIOTEC SAS: 1871\nPAECIA SAS: 1873","Ninguna","NO"]
["3.3.6","Cumplimiento compra publica innovadora, sostenible y socialmente responsable:","SI",null,"666-676","Ninguna","NO","SI",{"$nulls":3},"1876-1880","Ninguna","NO"]
[null,"ANEXO N°12 - COMPRA PÚBLICA INNOVADORA.","SI",null,"666,670,674","Ninguna","NO","SI",{"$nulls":3},1876,"Ninguna","NO"]
[null,"ANEXO N°13- COMPRA PÚBLICA SOSTENIBLE.","SI",null,"667,671,675","Ninguna","NO","SI",{"$nulls":3},1878,"Ninguna","NO"]
[null,"ANEXO N°14-COMPRA PÚBLICA SOCIALMENTE RESPONSABLE.","SI",null,"668,672,676","Ninguna","NO","SI",{"$nulls":3},1880,"Ninguna","NO"]
["3.2.3","ANEXO N° 22-CONFORMACIÓN DE PROPONENTE PRURAL","SI",null,"21-26","Ninguna","NO","SI",{"$nulls":3},"1109-1114","Ninguna","NO"]
["RESULTADO ",null,"HABILITADO",{"$nulls":4},"HABILITADO"]

{"sheet":"Técnico-Experiencia General","index":1,"n_rows":18,"n_cols":58,"rows_kept":18,"merged":[[0,2,0,6],[0,7,0,13],[1,0,1,1]]}
[null,null,"UNION TEMPORAL GESTION INTEGRAL C5",{"$nulls":4},"UNON TEMPORAL SEGURIDAD VIPE 2025"]
["EXPERIENCIA HABILITANTE",null,"RUP (1) SEGURITECH COLOMBIA SAS","RUP (9) UNION ELECTRICA SA","SMMLV","FOLIO ","Observacion ","RUP (32) VIOTEC SAS ","RUP (20-46-48) INGENIERIA Y TELEMATICA  G&C ","RUP (80) ESDRAS MD INGENIERIA  SAS","RUP (34) PAECIA SAS","SMMLV","FOLIO ","Observacion ",{"$nulls":23},"ALARMAR","ATLAS SEGURIDAD","CABLETRONICS S.A.S","CI2","CORTE INGLES","ENERGIZANDO INGENIERIA Y CONSTRUCCIÓN","G4S - SECURE SOLUTIONS COLOMBIA S.A.","INDRA DE COLOMBIA S.A.S","INSITEL","ISEC","MELTEC COMUNICACIONES S.A","NEC DE COLOMBIA ","PROSEGUR","SITECSYS","SONDA DE COLOMBIA ","TIC COLOMBIA S.A.S","CURACAO DE COLOMBIA ","SECURITY VIDEO EQUIPMENT","SEGURITECH","ITELCA","CIS"]
[null,"Experiencia General Habilitante"]
[null,"experiencia en mínimo uno (1) y máximo cuatro  (4) contratos certificados en papel membrete ejecutados y terminados, por un valor que sumado sea igual o superior al 70% del presupuesto oficial inicial, esto es OCHENTA Y NUEVE MIL (89.000) SMMLV, cuyo objeto y/o alcance y/o actividades estén relacionados con lo siguiente",{"$nulls":4},"CUMPLE",{"$nulls":4},{"$f":"19892.58+23162.9153","v":43055.4953},null,"1616-1756"]
["3.3.1.1","Experiencia en implementación complejos de seguridad"]
[null,"El proponente deberá acreditar la experiencia general con la presentación de una (1) certificación de contratos con entidades públicas, iniciados y terminados dentro de los últimos 15 años,",null,"si",null,499,null,null,"si",{"$nulls":4},"1616-1756"]
[null,"cuyo objeto y/o alcance y/o actividades incluya la implementación y/o construcción y puesta en funcionamiento de: Centros de comando y control para seguridad ciudadana y/o centros de emergencia y seguridad para seguridad ciudadana y/o centros de monitoreo para seguridad ciudadana y",null,"si",null,499,null,null,"si",{"$nulls":4},"1616-1756"]
[null,"que no sea inferior a 15.000 SMMLV, ",null,"si",44613.81,499,null,null,"si",{"$nulls":4},"1616-1756"]
[null,"la cual deberá estar debidamente registrada en el Registro Único de Proponentes-RUP.",null,"si",{"$nulls":4},"si",{"$nulls":4},"1616-1756"]
["3.3.1.2","Experiencia en Construcción de Edificaciones institucionales de alta complejidad"]
[null,"El proponente deberá acreditar la experiencia general con la presentación de una (1) certificación de contratos con entidades públicas y/o privadas tales como Hospitales, colegios, centros comerciales, cetro de comando y control, c3, c4, c5,",null,"si",null,"503-526",null,null,"si","si",{"$nulls":3},"1616-1756"]
[null,"iniciados y terminados dentro de los últimos 15 años,",null,"si",null,"503-526",null,null,"si","si",{"$nulls":3},"1616-1756"]
[null,"cuyo objeto y/o alcance y/o actividades incluya la construcción y/o adecuación de edificios institucionales de alta complejidad públicos y/o privados",null,"si",null,"503-526",null,null,"si","si",{"$nulls":3},"1616-1756"]
[null,"y que no sea inferior a 30000 SMMLV",null,"si",1462691.6,"503-526",null,null,"si","si",null,{"$f":"48130.34*0.7098","v":34162.915332},null,"1616-1756"]
[null,"SMMLV, la cual deberá estar debidamente registrada en el Registro Único de Proponentes-RUP.",null,"si"]
["3.3.1.3","Experiencia en Construcción en metros cuadrados"]
[null,"El proponente deberá acreditar la experiencia general con la presentación de una (1) certificación de un contrato iniciado y terminado dentro de los últimos 15 años",null,"si",null,"503-526",{"$nulls":4},"si",null,null,"1616-1756"]
[null,"y que incluya que la construcción en metros cuadrados construidos sea mínima de trece mil 13.000m2.",null,"si",null,"503-526","13311,09m2",{"$nulls":3},"si",20035,null,"13205,79m2"]

{"sheet":"Técnico-Experiencia Específica","index":2,"n_rows":35,"n_cols":15,"rows_kept":35,"merged":[[0,4,0,7],[0,9,0,13]]}
[{"$nulls":4},"UNION TEMPORAL GESTION INTEGRAL C5",{"$nulls":3},"Observacion ","UNON TEMPORAL SEGURIDAD VIPE 2025",{"$nulls":4},"Observacion "]
["ITEM","Experiencia General del Proponente",null,null,"RUP () SEGURITECH COLOMBIA SAS","RUP (9) UNION ELECTRICA SA","SMMLV","FOLIO ",null,"RUP (32) VIOTEC SAS ","RUP (20-46-48) INGENIERIA Y TELEMATICA  G&C ","RUP (80) ESDRAS MD INGENIERIA  SAS","RUP (34) PAECIA SAS","FOLIO "]
["3.3.2","Experiencia específica en implementación de complejos de seguridad"]
[null,"Con el fin de validar la experiencia en las actividades esenciales del contrato, el proponente deberá cumplir, a través de las certificaciones aportadas como requisito habilitante general, con las siguientes condiciones mínimas: (ANEXO N° 8 - RELACIÓN DE EXPERIENCIA ESPECÍFICA)\n\nUn mismo contrato deberá incluir la totalidad de las actividades de construcción y/o implementación y/o adecuación de un centro de comando y control para seguridad ciudadana y/o centro de emergencia y seguridad para la seguridad ciudadana y/o centro de monitoreo para la seguridad ciudadana y/o sala de control para la seguridd ciudadana que dentro de su alcance de obra incluya como mínimo",{"$nulls":3},"si",null,"530-533",null,null,"si","si",null,"1696-1794"]
[null,"Sala de visualización",null,null,"si",null,null,"530-533",{"$nulls":5},"1696-1794"]
[null,"Puestos de trabajo y/o muebles y/o módulos para mínimo 40 operadores",null,null,"si",null,null,"530-533",null,null,"si","si",null,"1696-1794"]
[null,"Sala de crisis",null,null,"si",null,null,"530-533",null,null,"si","si",null,"1696-1794"]
[null,"Sala de reuniones y/o salas de capacitación y entrenamiento",null,null,"si",null,null,"530-533",null,null,"si","si",null,"1696-1794"]
[{"$nulls":7},"530-533",{"$nulls":5},"1696-1794"]
[null,"Sistema de CCTV que incluya como mínimo 30 cámaras",null,null,"si",null,null,"530-533",null,null,"si","si",null,"1696-1794"]
[null,"Talanqueras de acceso vehicular y/o control de acceso vehicular con reconocimiento de placas",null,null,"si",null,null,"530-533",null,null,"si","si",null,"1696-1794"]
[null,"Sistema de control de acceso",null,null,"si",null,null,"530-533",{"$nulls":5},"1696-1794"]
[null,"Red de voz y datos",null,null,"si",null,null,"530-533",null,null,"si","si",null,"1696-1794"]
[null,"Iluminación de emergencia",null,null,"si",null,null,"530-533",null,null,"si","si",null,"1696-1794"]
[null,"Equipos activos de networking y/o Swichtes",null,null,"si",null,null,"530-533",null,null,"si","si",null,"1696-1794"]
[null,"Estaciones de trabajo",null,null,"si",null,null,"530-533",null,null,"si","si",null,"1696-1794"]
[null,"Sistema de respaldo de energía (UPS y planta eléctrica)",null,null,"si",null,null,"530-533",null,null,"si","si",null,"1696-1794"]
[null,"Sistema de detección y extinción de incendios",null,null,"si",null,null,"530-533",null,null,"si","si",null,"1696-1794"]
[null,"Sistema de visualización en gran formato tipo Videowall de mínimo 12 metros X 2 metros y/o arreglo de mínimo 40 monitores",null,null,"si",null,null,"530-533",null,null,"si","si",null,"1696-1794"]
[null,"VMS: Certificar el suministro e instalación de una solución de gestión de video y/o sistema de administración de video y/o Sistema de automatización BMS (Bulding Managment System).",null,null,"si",null,null,"530-533",null,null,"si","si",null,"1696-1794"]
[null,"Enlace de comunicación inalámbrica de punto a punto y/o enlace de microondas Trunking",null,null,"si",null,null,"530-533",null,null,"si","si",null,"1696-1794"]
[null,"Equipos activos de comunicaciones que provea como mínimo 500 puntos de red 10/100/1000",null,null,"si",null,null,"530-533",null,null,"si","si",null,"1696-1794"]
[null,"comunicaciones de Fibra Óptica",null,null,"si",null,null,"530-533",null,null,"si","si",null,"1696-1794"]
[null,"Iluminación: Mínimo 200 luminarias",null,null,"si",null,null,"530-533",null,null,"si","si",null,"1696-1794"]
[null,"Datacenter: Certificar la construcción y/o adecuación de un Datacenter de un área mínima de 20 m2",null,null,"si",null,null,"530-533",null,null,"si","si",null,"1696-1794"]
[null,"Sistema de respaldo ininterrumpido de potencia UPS",null,null,"si",null,null,"530-533",null,null,"si","si",null,"1696-1794"]
[null,"Subestación Eléctrica",null,null,"si",null,null,"530-533",null,null,"si","si",null,"1696-1794"]
[null,"Aire Acondicionado de confort",null,null,"si",null,null,"530-533",null,null,"si","si",null,"1696-1794"]
[null,"Aire acondicionado de precisión",null,null,"si",null,null,"530-533",null,null,"si","si"]
[null,"Nota 1: Para la acreditación de la experiencia habilitante específica, el contrato debe estar inscrito en el RUP, como mínimo dos (2) de los siguientes códigos UNSPSC"]
["UNSPSC","Iluminació n de interióres y artefactós",39111500,null,"si",{"$nulls":5},"si"]
["UNSPSC","Cámaras",45121500,null,"si",{"$nulls":5},"si"]
["UNSPSC","Equipó de vigilancia y detección",46171600,null,"si",{"$nulls":5},"si"]
["UNSPSC","Serviciós de sistemas de seguridad",92121700,null,"si",{"$nulls":5},"si"]
["UNSPSC","Servició de cónstrucció n de serviciós pu blicós especializadós",72121400,null,"si",{"$nulls":5},"si"]

{"sheet":"Técnico-Personal","index":3,"n_rows":37,"n_cols":7,"rows_kept":37,"merged":[[0,3,0,4],[0,5,0,6]]}
["3.3.3","PERSONAL MÍNIMO REQUERIDO",null,"UNION TEMPORAL GESTION INTEGRAL C5",null,"UNON TEMPORAL SEGURIDAD VIPE 2025"]
["3.3.3.1","Director General de Proyectos y operaciones:",null,"UT1","Folios","UT1","Folios"]
[null,"Formación Profesional y Certificaciones:\nIngeniero Civil y/o Ingeniero Electrónico y/o Ingeniero Electricista y/o Ingeniero de Sistemas y/o Ingeniero Electromecánico.",null,"si","537-554","si","1776-1792"]
[null,"Deberá contar con especialización y/o maestría en Gerencia de Proyectos y/o Gestión de Proyectos y/o Magister en Ingeniería Civil",null,"si","537-554","si","1776-1792"]
[null,"Deberá contar con certificación SCRUM MASTER y/o  PMP vigente  y/o especializacion en gerencia de proyectos",null,"si","537-554","si","1776-1792"]
[]
[null,"Experiencia General:\nAcreditar experiencia general no menor de quince (15) años, contada entre la fecha de expedición de la matrícula profesional y la fecha de presentación de ofertas del presente proceso.\nPara efectos de acreditación de la experiencia general se deberá aportar copia de la tarjeta profesional y del certificado de vigencia de la matricula profesional",null,"2008-11-06","537-554","2008-04-01","1776-1792"]
[]
[null,"Experiencia Específica:\nAcreditar experiencia específica no menor a diez (10) años como Director de Proyectos y/o Gerente de Proyectos y/o Director de Operaciones y/o Gerente de Operaciones.\nPara tal fin deberá presentar los certificados expedidos por las empresas contratantes, en las que acredite el requisito y la hoja de vida vigente.",null,"11,79 años","537-554","11,92 años","1776-1792"]
[]
[null,"Consentimiento del personal:\nDeberá aportar una carta de intención suscrita por la persona que acredita el requisito, donde certifican que tienen interés en realizar las actividades propias del contrato y conocen las implicaciones y actividades a desarrollar.",null,"si","537-554","si","1776-1792"]
["3.3.3.2","Director de Tecnología: (evaludado desde el formato de experiencia)"]
[]
[null,"Formación Profesional y Certificaciones:\nIngeniero Electrónico y/o Ingeniero Electricista y/o Ingeniero de Sistemas y/o Electromecánico y/o afines",null,"si","556-625","si","1793-1832"]
[null,"Deberá contar con Certificación PMP Vigente.",null,"si",null,"si","1793-1832"]
[]
[null,"Experiencia General:\nAcreditar experiencia general no menor de quince (15) años, contada entre la fecha de expedición de la matrícula profesional y la fecha de presentación de ofertas del presente proceso.\nPara efectos de acreditación de la experiencia general se deberá aportar copia de la tarjeta profesional y del certificado de vigencia de la matricula profesional",null,"1994-07-28","556-625","2007-10-12","1793-1832"]
[]
[null,"Experiencia Específica:\nAcreditar experiencia específica como Director de Tecnología y/o Gerente de Tecnología y/o Director de Proyectos y/o Gerente de Proyectos en mínimo cinco (5) proyectos de tecnología de seguridad ciudadana, los cuales contemplen",null,"si (8)","556-625","si (6)","1793-1832"]
[null,"la construcción"]
[null,"y/o implementación de sistemas de seguridad electrónica"]
[null,"y/o sistema de 123"]
[null,"y/o sistemas integrados de emergencia y seguridad"]
[null,"y/o Salas de Monitoreo"]
[null,"y/o Centros de Comando y Control"]
[]
[null,"Consentimiento del personal:\nDeberá aportar una carta de intención suscrita por la persona que acredita el requisito, donde certifican que tienen interés en realizar las actividades propias del contrato y conocen las implicaciones y actividades a desarrollar.",null,"si",null,"si","1793-1832"]
["3.3.3.3","Profesional responsable de SG-SST (evaludado desde el formato de experiencia)"]
[]
[null,"Formación Profesional y Certificaciones:\nProfesional o profesional especializado en Salud y Seguridad en el trabajo SST con Licencia en Seguridad y Salud en el Trabajo vigente",null,"si ","577-587","si","1833-1857"]
[null,"y el curso de capacitación virtual de cincuenta (50) y/o veinte (20) horas.",null,"si","577-587","si","1833-1857"]
[]
[null,"Experiencia General:\nAcreditar experiencia general mínima de dos (2) años contados a partir de la obtención del título como Profesional o profesional especializado en Salud y Seguridad en el trabajo SST.\nPara efectos de acreditación de la experiencia general deberá presentar los certificados que acrediten el requisito y la hoja de vida vigente.",null,"si","577-587","2020-11-18","1833-1857"]
[]
[null,"Experiencia Específica:\nDeberá certificar al menos un (1) proyecto donde se haya trabajado panoramas de riesgo y gestión de incidentes para proyectos de: obra y/o seguridad ciudadana y/o videovigilancia ciudadana o afines\".",null,"si","577-587","si","1833-1857"]
[]
[null,"Consentimiento del personal:\nDeberá aportar una carta de intención suscrita por la persona que acredita el requisito, donde certifican que tienen interés en realizar las actividades propias del contrato y conocen las implicaciones y actividades a desarrollar.",null,"si",577,"si","1833-1857"]

{"sheet":"Técnico- Cartas de fábrica","index":4,"n_rows":28,"n_cols":15,"rows_kept":28,"merged":[[0,3,0,7],[0,8,0,14]]}
[{"$nulls":3},"UNION TEMPORAL GESTION INTEGRAL C5",{"$nulls":4},"UNON TEMPORAL SEGURIDAD VIPE 2025"]
[null,"El proponente deberá aportar como mínimo 8 de las siguientes cartas de fábricas:","Comentario","SEGURITECH COLOMBIA SAS","UNION ELECTRICA SA","FABRICANTE ","Folio","Observacion ","VIOTEC SAS ","INGENIERIA Y TELEMATICA  G&C ","ESDRAS MD INGENIERIA  SAS","PAECIA SAS","FABRICANTE ","Folio","Observacion "]
[1,"Sistema de gestión de edificios","selección",1,0,"Schneider",592,null,0,0,0,0]
[2,"Sombrilla Security","selección",0,0,{"$nulls":3},0,0,0,0]
[3,"CCTV (LPR, Facial, Analítica, aprendizaje profundo)","selección",1,0,"AXIS, \nISS\nGENETEC","595\n596\n597",null,1,0,0,0,"AXIS, \nISS\nGENETEC","7 al 11"]
[4,"Audio Evacuación","selección",1,0,"KEENFINTY",603,null,1,0,0,0,"KEENFINTY","13 a 15"]
[5,"Equipamiento Multimedia","selección",0,0,{"$nulls":3},0,0,0,0]
[6,"Lectoras Sistema control acceso","selección",1,0,null,606,null,1,0,0,0,"IDEMIA",17]
[7,"Controladora sistema control acceso","selección",1,0,"AXIS",608,null,1,0,0,0,"AXIS",19]
[8,"Máquina de Rayos X","selección",1,0,"ASTROPHYSICS",611,null,0,1,0,0,"PROTACTICS",21]
[9,"Arco detector de metales","selección",0,0,{"$nulls":3},0,0,0,0]
[10,"Talanquera/Road Blockers","selección",1,0,"CAME",614,null,0,1,0,0,"CAME","23\n24"]
[11,"Torniquetes","selección",1,0,"WOLPAC",617,null,0,1,0,0,"WOLPAC\nCAME","26\n27\n28"]
[12,"Radares sistema de intrusión","selección",1,0,"AXIS",620,null,1,0,0,0,"AXIS",30]
[13,"Panel, sensores sistema de intrusión","selección",1,0,"AXIS",623,null,1,0,0,0,"AXIS",32]
[14,"Sistema de gestión de visitantes","selección",1,0,"WELCOME",626,null,1,0,0,0,"WELCOME","34\n35"]
[15,"Enlace Inalámbrico","selección",0,0,{"$nulls":3},0,0,0,0,"TRANSCELESTIAL ",37,"No se evidencia en la carta que es un canal autorizado, para la comercialización y/o adquisición, instalación y puesta a punto, soporte y mantenimiento de los equipos sobre los cuales están anexos en la ficha técnica."]
[16,"VideoWall","Obligatoria",1,0,"UNILUMIN",629,null,1,0,0,0,"UNILUMIN","39\n46"]
[17,"Controladora Videowall","Obligatoria",1,0,"JUPITER ",634,null,1,0,0,0,"JUPITER ","42\n48"]
[18,"Muebles especializado","selección",1,0,"GESAB",637,null,1,0,0,0,"GESAB",44]
[]
["a","carta emitida por cada una de las fábricas de los subsistemas presentados dirigida al proceso, donde se indique que el proponente cuenta con personal certificado para realizar la instalación, configuración, puesta a punto y mantenimiento."]
["b","carta de cada uno de los fabricantes de los subsistemas presentados dirigida al presente proceso: donde certifique que el OFERENTE es un canal autorizado, para la comercialización y/o adquisición, instalación y puesta a punto, soporte y mantenimiento de los equipos sobre los cuales están anexos en la ficha técnica."]
["c","Carta dirigía por los fabricantes presentados a un (1) mayorista donde indica que es un canal autorizado de distribución"]
["d","Carta de un mayorista donde indica que respaldara financieramente el flujo del proyecto para los subsistemas listados"]
["e1","Carta de fabricante de VideoWall existente que certifique la compatibilidad en la ampliación del sistema existente, el cual está definido en el anexo de especificaciones técnicas.",null,"si",null,"UNILUMIN ",642]
["e2","Carta de fabricante de Controladora de VideoWall existente que certifique la compatibilidad en la ampliación del sistema existente, el cual está definido en el anexo de especificaciones técnicas.",null,"si",null,"JUPITER ",640]
["f","El proponente deberá diligenciar el ANEXO N° 10 CARTAS DE FÁBRICA",null,"si"]

{"sheet":"Financiero","index":5,"n_rows":14,"n_cols":7,"rows_kept":14,"merged":[[1,0,3,0],[9,0,11,0]]}
[]
["UNIÓN TEMPORAL GESTIÓN INTEGRAL C5","Índice de liquidez","Nivel de endeudamiento","Razón de Cobertura","Rentabilidad sobre el Patrimonio","Rentabilidad sobre el Activo","Capital de Trabajo"]
[null,"mayor o igual a","menor o igual","mayor o igual a","mayor o igual a","mayor o igual a","mayor o igual a"]
[null,{"v":1.8,"d":"1.80"},0.75,{"v":2,"d":"2.0"},0.07,0.05,{"v":70000000000,"d":"$ 70,000,000,000"}]
[null,3.28,{"v":0.4,"d":"0.40"},2.89,0.09,0.05,{"v":90311331030,"d":"$ 90,311,331,030"}]
[null,{"$f":"B5>=B4","v":true},{"$f":"C5<=C4","v":true},{"$f":"D5>=D4","v":true},{"$f":"E5>=E4","v":true},{"$f":"F5>=F4","v":true},{"$f":"G5>=G4","v":true}]
[]
[]
[]
["UNIÓN TEMPORAL SEGURIDAD VIPE 2025","Índice de liquidez","Nivel de endeudamiento","Razón de Cobertura","Rentabilidad sobre el Patrimonio","Rentabilidad sobre el Activo","Capital de Trabajo"]
[null,"mayor o igual a","menor o igual","mayor o igual a","mayor o igual a","mayor o igual a","mayor o igual a"]
[null,{"v":1.8,"d":"1.80"},0.75,{"v":2,"d":"2.0"},0.07,0.05,{"v":70000000000,"d":"$ 70,000,000,000"}]
[null,3.51,0.37,7.39,0.09,0.06,{"v":75834988874,"d":"$ 75,834,988,874"}]
[null,{"$f":"B13>=B12","v":true},{"$f":"C13<=C12","v":true},{"$f":"D13>=D12","v":true},{"$f":"E13>=E12","v":true},{"$f":"F13>=F12","v":true},{"$f":"G13>=G12","v":true}]

{"sheet":"Ponderables","index":6,"n_rows":9,"n_cols":6,"rows_kept":9}
[]
["Criterio","Puntaje Máximo",null,"UT Ci2 - SP Ingenieria & Constructores","UNION TEMPORAL GESTION INTEGRAL C5","UNON TEMPORAL SEGURIDAD VIPE 2025"]
["Factor Técnico",535,null,{"$f":"'Factor técnico'!#REF!","v":{"$error":"#REF!"}},{"$f":"'Factor técnico'!D22","v":510},{"$f":"'Factor técnico'!G22","v":353}]
["Factor Económico (Precio )",353,null,{"$f":"Precio!B21","v":0},{"$f":"Precio!C21","v":{"v":352.1336871007341,"d":"352"}},{"$f":"Precio!D21","v":353}]
["Estímulo a la industria Nacional Colombiana",100,null,{"$f":"+'Estímulo-Discap-Empren'!#REF!","v":{"$error":"#REF!"}},{"$f":"'Estímulo-Discap-Empren'!E4","v":100},{"$f":"'Estímulo-Discap-Empren'!H4","v":100}]
["Personal con discapacidad",10,null,{"$f":"+'Estímulo-Discap-Empren'!#REF!","v":{"$error":"#REF!"}},{"$f":"'Estímulo-Discap-Empren'!E5","v":10},{"$f":"'Estímulo-Discap-Empren'!H5","v":10}]
["Emprendimientos y empresas de mujeres",2,null,{"$f":"+'Estímulo-Discap-Empren'!#REF!","v":{"$error":"#REF!"}},{"$f":"'Estímulo-Discap-Empren'!E6","v":2},{"$f":"'Estímulo-Discap-Empren'!H6","v":2}]
["TOTAL PUNTOS",{"$f":"B3+B4+B5+B6+B7","v":1000},null,{"$f":"D3+D4+D5+D6+D7","v":{"$error":"#REF!"}},{"$f":"E3+E4+E5+E6+E7","v":{"v":974.133687100734,"d":"974"}},{"$f":"F3+F4+F5+F6+F7","v":818}]
[null,{"$f":"MAX(D8:F8)","v":{"$error":"#REF!"}}]

{"sheet":"Precio","index":7,"n_rows":21,"n_cols":7,"rows_kept":21,"merged":[[1,6,1,7],[10,1,10,3]]}
[]
[null,"UT Ci2 - SP Ingenieria & Constructores","UNION TEMPORAL GESTION INTEGRAL C5","UNON TEMPORAL SEGURIDAD VIPE 2025","P. oficial "]
[null,{"v":234241011864,"d":"$ 234,241,011,864"},{"$f":"233932237645","v":{"v":233932237645,"d":"$ 233,932,237,645"}},{"$f":"233358134203","v":{"v":233358134203,"d":"$ 233,358,134,203"}},{"$f":"F3+G3","v":{"v":233986523216,"d":"$ 233,986,523,216"}},{"v":180996349096,"d":"$ 180,996,349,096"},{"v":52990174120,"d":"$ 52,990,174,120"}]
["TECHO ",{"$f":"B3<$E$3","v":false},{"$f":"C3<$E$3","v":true},{"$f":"D3<$E$3","v":true}]
["PISO ",{"$f":"B3>$E$5","v":true},{"$f":"C3>$E$5","v":true},{"$f":"D3>$E$5","v":true},{"$f":"E3-E3*5%","v":{"v":222287197055.2,"d":"$ 222,287,197,055"}}]
[null,{"$f":"$E$3-B3","v":{"v":-254488648,"d":"-$ 254,488,648"}},{"$f":"$E$3-C3","v":{"v":54285571,"d":"$ 54,285,571"}},{"$f":"$E$3-D3","v":{"v":628389013,"d":"$ 628,389,013"}}]
[null,{"$f":"B6/E3","v":{"v":-1.0876209642427734E-3,"d":"-0.11%"}},{"$f":"C6/E3","v":{"v":2.3200298142764126E-4,"d":"0.02%"}},{"$f":"D6/E3","v":{"v":0.002685577803213543,"d":"0.27%"}}]
[]
[]
[]
[1,"MENOR VALOR"]
[null,{"$f":"B3","v":{"v":234241011864,"d":"$ 234,241,011,864"}},{"v":233932237645,"d":"$ 233,932,237,645"},{"v":233358134203,"d":"$ 233,358,134,203"}]
["Puntos",353,353,353]
[]
["PUNTAJE",0,{"$f":"C13*MIN($C$3:$D$3)/C12","v":{"v":352.1336871007341,"d":"$ 352"}},{"$f":"D13*MIN($C$3:$D$3)/D12","v":{"v":353,"d":"$ 353"}}]
[]
[]
[]
[]
[]
["PUNTAJE",{"$f":"B15","v":0},{"$f":"C15","v":{"v":352.1336871007341,"d":"$ 352"}},{"$f":"D15","v":{"v":353,"d":"$ 353"}}]

{"sheet":"Factor técnico","index":8,"n_rows":28,"n_cols":9,"rows_kept":28,"merged":[[1,0,1,2],[27,0,27,1]]}
[]
["CALIDAD (535 PUNTOS)"]
["ITEM","FACTOR TÉCNICO","PUNTAJE MAXIMO EVALUABLE","UNION TEMPORAL GESTION INTEGRAL C5","FOLIO","OBSERVACIONES","UNON TEMPORAL SEGURIDAD VIPE 2025","FOLIOS","OBSERVACIONES2"]
["A","Contratos de Seguridad ciudadana de construcción y/o adecuación y/o implementación de centros de monitoreo y/o salas de monitoreo y/o salas integradas de emergencia y seguridad (SIES) y/o centros de comando y control en Colombia",80,80,"1660-1869",null,80,"1888-1970"]
["B","Contratos de Seguridad ciudadana de construcción y/o adecuación y/o implementación de centros de monitoreo y/o salas de monitoreo y/o salas integradas de emergencia y seguridad (SIES) y/o centros de comando y control en diferentes municipios de Colombiaa",30,30,"1870-1872,11667-1780",null,30,"1971-1977"]
["C","Contratos de suministro y/o instalación y/o implementación de sistemas de proyección y/o visualización de gran formato (Video Wall), en edificaciones institucionales y/o públicas y/o gubernamentales",50,50,"1875-1955",null,20,"1978-1984"]
["D","Contratos de seguridad ciudadana de suministro, instalación y configuración de puntos de cableado estructurado",30,30,"1957-1959",null,25,"1985-1995","No se tienen encuenta los patch cord"]
["E","Contratos de Suministro, Instalación y puesta en funcionamiento de redes de comunicación en edificaciones institucionales y/o públicas y/o gubernamentales",24,24,"1960-1963",null,18,"1996-2021"]
["F","Contratos de seguridad ciudadana, de soluciones de gestión de video y/o sistemas de administración de video (VMS)",12,12,"1969-1972",null,3,"2022-2025"]
["G","Contratos cuyo objeto, alcance o actividades contengan: Suministro y/o instalación y/o integración de BMS (Business Managment System) y/o automatización, en edificaciones institucionales y/o públicas y/o gubernamentales",30,30,"1973-1979",null,30,"2026-2059"]
["H","Contratos de Suministro e Instalación, de sistemas de voceo y/o megafonía y/o audio y/o sonido en edificaciones institucionales y/o públicas y/o estatales y/o gubernamentales",25,25,"1980-2000",null,15,"2060-2099","No se contabiliza el contrato No. 08811-2017, dado que no aporta acta de liquidación o acta de terminación"]
["I","Contratos de seguridad ciudadana de suministro y/o construcción y/o adecuación de centros de monitoreo y/o salas de monitoreo y/o salas integradas de emergencia y seguridad (SIES) y/o centros de comando y control, que incluyan el suministro e instalación de lectoras biométricas y/o faciales y/o sistemas de identificación biométrica.",12,12,"2001-2004",null,12,"2100-2107"]
["J","Contratos de seguridad ciudadana de construcción y/o adecuación de centros de monitoreo y/o salas de monitoreo y/o salas integradas de emergencia y seguridad (SIES) y/o centros de comando y control, que incluyan el suministro e instalación de CCTV interno",12,12,"2005-2008",null,3,"2108-2115"]
["K","Contratos de construcción y/o adecuación y/o implementación de Data Center y/o Centros de Cableado y/o Salas de Cómputo, en edificaciones institucionales y/o públicas y/ estatales y/o gubernamentales,",50,50,"2009-2017",null,50,"2116-2177"]
["L","Contratos de seguridad ciudadana de construcción y/o adecuación de centros de monitoreo y/o salas de monitoreo y/o salas integradas de emergencia y seguridad (SIES) y/o centros de comando y control, que incluyan el suministro, instalación y configuración de teléfonos y/o plantas telefónicas.",12,12,"2018-2021",null,9,"2195-2205"]
["M","Contratos de seguridad ciudadana de construcción de centros de monitoreo y/o salas de monitoreo y/o salas integradas de emergencia y seguridad (SIES) y/o centros de comando y control en Colombia",55,45,"2022-2059","No se comprobó la subestación ni los puestos de operadores",40,"2206-2259","En la certificación aportada no se evidencia lo siguiente: sala de receptores, planta diésel en cabina insonorizada, el  equipo de bombeo de protección contra incendio se encontró fue por aspirado"]
["N","Contratos de seguridad ciudadana de construcción de centros de monitoreo y/o salas de monitoreo y/o salas integradas de emergencia y seguridad (SIES) y/o centros de comando y control en función del área construida",50,50,"2060-2063",null,10,"2260-2303"]
["O","Contratos de suministro, instalación y configuración de sistemas multimedia en edificaciones institucionales y/o públicas y/o estatales y/o gubernamentales",33,27,"2064-2067","No se comprobó el sistema de audio evacuación y no se evidencia en el certificado que la puerta de enlace sea para al menos 10 espacios 1 por espacio",0,"2304-2311","El certificado aportado no permite verificar las cantidades mínimas exigidas para la puntuación"]
["P","Contratos de suministro y/o instalación y/o configuración de sistemas especiales de intrusión y protección de accesos en edificaciones institucionales y/o públicas y/o estatales y/o gubernamentales",15,9,"2063-2080","No se evidencia en el certificado aportado que el pasillo sea bidireccional",6,"2312-2328","No se evidencia en el certificado aportado que el pasillo sea bidireccional"]
["Q","Contratos de suministro, instalación y/o puesta en funcionamiento de sistemas de iluminación en edificaciones institucionales y/o públicas y/o estatales y/o gubernamentales",15,12,"2081-2086","No se evidencia el número de luminarias automatizadas",2,"2329-2343","No se evidencia el número de luminarias automatizadas, no se evidencia el fotocontrol"]
[null,null,{"$f":"SUM(C4:C20)","v":535},{"$f":"SUM(Tabla1[[#All],[UNION TEMPORAL GESTION INTEGRAL C5]])&\"/535\"","v":"510/535"},null,null,{"$f":"SUM(Tabla1[UNON TEMPORAL SEGURIDAD VIPE 2025])&\"/535\"","v":"353/535"}]
[{"$nulls":3},{"$f":"SUM(Tabla1[UNION TEMPORAL GESTION INTEGRAL C5])","v":510},null,null,{"$f":"SUM(Tabla1[UNON TEMPORAL SEGURIDAD VIPE 2025])","v":353}]
[]
[]
[2]
[]
[]
["TOTAL PUNTOS ",null,{"$f":"C21","v":535},{"$f":"D22","v":510},null,null,{"$f":"G22","v":353}]

{"sheet":"Puntajes","index":9,"n_rows":52,"n_cols":33,"rows_kept":52,"hidden":true}
["ITEM","A","Puntos","Puntos2","Puntos3","Puntos4","Puntos5"]
["A",{"$f":"'Factor técnico'!B4","v":"Contratos de Seguridad ciudadana de construcción y/o adecuación y/o implementación de centros de monitoreo y/o salas de monitoreo y/o salas integradas de emergencia y seguridad (SIES) y/o centros de comando y control en Colombia"},{"$f":"'Factor técnico'!C4","v":80},60,40,20,0]
[]
[null,"B","Puntos","Puntos2","Puntos3","Puntos4","Puntos5"]
["B",{"$f":"'Factor técnico'!B5","v":"Contratos de Seguridad ciudadana de construcción y/o adecuación y/o implementación de centros de monitoreo y/o salas de monitoreo y/o salas integradas de emergencia y seguridad (SIES) y/o centros de comando y control en diferentes municipios de Colombiaa"},{"$f":"'Factor técnico'!C5","v":30},20,10,0]
[]
[null,"C","Puntos","Puntos2","Puntos3","Puntos4","Puntos5"]
["C",{"$f":"'Factor técnico'!B6","v":"Contratos de suministro y/o instalación y/o implementación de sistemas de proyección y/o visualización de gran formato (Video Wall), en edificaciones institucionales y/o públicas y/o gubernamentales"},{"$f":"'Factor técnico'!C6","v":50},25,20,0]
[]
[null,"D","Puntos","Puntos2","Puntos3","Puntos4","Puntos5","Puntos6"]
["D",{"$f":"'Factor técnico'!B7","v":"Contratos de seguridad ciudadana de suministro, instalación y configuración de puntos de cableado estructurado"},{"$f":"'Factor técnico'!C7","v":30},25,20,15,10,0]
[]
[null,"E","Puntos","Puntos2","Puntos3","Puntos4","Puntos5"]
["E",{"$f":"'Factor técnico'!B8","v":"Contratos de Suministro, Instalación y puesta en funcionamiento de redes de comunicación en edificaciones institucionales y/o públicas y/o gubernamentales"},{"$f":"'Factor técnico'!C8","v":24},18,12,6,0]
[]
[null,"F","Puntos","Puntos2","Puntos3","Puntos4","Puntos5"]
["F",{"$f":"'Factor técnico'!B9","v":"Contratos de seguridad ciudadana, de soluciones de gestión de video y/o sistemas de administración de video (VMS)"},{"$f":"'Factor técnico'!C9","v":12},9,6,3,0]
[]
[null,"G","Puntos","Puntos2","Puntos3","Puntos4","Puntos5","Puntos6","Puntos7"]
["G",{"$f":"'Factor técnico'!B10","v":"Contratos cuyo objeto, alcance o actividades contengan: Suministro y/o instalación y/o integración de BMS (Business Managment System) y/o automatización, en edificaciones institucionales y/o públicas y/o gubernamentales"},{"$f":"'Factor técnico'!C10","v":30},25,20,15,10,5,0]
[]
[null,"H","Puntos","Puntos2","Puntos3","Puntos4","Puntos5"]
["H",{"$f":"'Factor técnico'!B11","v":"Contratos de Suministro e Instalación, de sistemas de voceo y/o megafonía y/o audio y/o sonido en edificaciones institucionales y/o públicas y/o estatales y/o gubernamentales"},{"$f":"'Factor técnico'!C11","v":25},15,10,0]
[]
[null,"I","Puntos","Puntos2","Puntos3","Puntos4","Puntos5"]
["I",{"$f":"'Factor técnico'!B12","v":"Contratos de seguridad ciudadana de suministro y/o construcción y/o adecuación de centros de monitoreo y/o salas de monitoreo y/o salas integradas de emergencia y seguridad (SIES) y/o centros de comando y control, que incluyan el suministro e instalación de lectoras biométricas y/o faciales y/o sistemas de identificación biométrica."},{"$f":"'Factor técnico'!C12","v":12},8,4,0]
[]
[null,"J","Puntos","Puntos2","Puntos3","Puntos4","Puntos5"]
["J",{"$f":"'Factor técnico'!B13","v":"Contratos de seguridad ciudadana de construcción y/o adecuación de centros de monitoreo y/o salas de monitoreo y/o salas integradas de emergencia y seguridad (SIES) y/o centros de comando y control, que incluyan el suministro e instalación de CCTV interno"},{"$f":"'Factor técnico'!C13","v":12},9,6,3,0]
[]
[null,"K","Puntos","Puntos2","Puntos3","Puntos4","Puntos5","Puntos6"]
["K",{"$f":"'Factor técnico'!B14","v":"Contratos de construcción y/o adecuación y/o implementación de Data Center y/o Centros de Cableado y/o Salas de Cómputo, en edificaciones institucionales y/o públicas y/ estatales y/o gubernamentales,"},{"$f":"'Factor técnico'!C14","v":50},25,15,10,5,0]
[]
[null,"L","Puntos","Puntos2","Puntos3","Puntos4","Puntos5"]
["L",{"$f":"'Factor técnico'!B15","v":"Contratos de seguridad ciudadana de construcción y/o adecuación de centros de monitoreo y/o salas de monitoreo y/o salas integradas de emergencia y seguridad (SIES) y/o centros de comando y control, que incluyan el suministro, instalación y configuración de teléfonos y/o plantas telefónicas."},{"$f":"'Factor técnico'!C15","v":12},9,6,3]
[]
[null,"M","Puntos","Puntos2","Puntos3","Puntos4","Puntos5","Puntos52","Puntos53","Puntos54","Puntos55","Puntos552","Puntos553","Puntos5532"]
["M",{"$f":"'Factor técnico'!B16","v":"Contratos de seguridad ciudadana de construcción de centros de monitoreo y/o salas de monitoreo y/o salas integradas de emergencia y seguridad (SIES) y/o centros de comando y control en Colombia"},{"$f":"'Factor técnico'!C16","v":55},50,45,40,35,30,25,20,15,10,5,0]
[]
[null,"N","Puntos","Puntos2","Puntos3","Puntos4","Puntos5","Puntos6"]
["N",{"$f":"'Factor técnico'!B17","v":"Contratos de seguridad ciudadana de construcción de centros de monitoreo y/o salas de monitoreo y/o salas integradas de emergencia y seguridad (SIES) y/o centros de comando y control en función del área construida"},{"$f":"'Factor técnico'!C17","v":50},40,30,20,10,0]
[]
[null,"O","Puntos","Puntos2","Puntos3","Puntos4","Puntos5","Puntos6","Puntos7","Puntos8","Puntos9","Puntos10","Puntos11","Puntos12"]
["O",{"$f":"'Factor técnico'!B18","v":"Contratos de suministro, instalación y configuración de sistemas multimedia en edificaciones institucionales y/o públicas y/o estatales y/o gubernamentales"},{"$f":"'Factor técnico'!C18","v":33},30,27,24,21,18,15,12,9,6,3,0]
[]
[null,"P","Puntos","Puntos2","Puntos3","Puntos4","Puntos5","Puntos6"]
["P",{"$f":"'Factor técnico'!B19","v":"Contratos de suministro y/o instalación y/o configuración de sistemas especiales de intrusión y protección de accesos en edificaciones institucionales y/o públicas y/o estatales y/o gubernamentales"},{"$f":"'Factor técnico'!C19","v":15},12,9,6,3,0]
[]
[null,"Q","Puntos","Puntos2","Puntos3","Puntos4","Puntos5","Puntos6","Puntos7","Puntos8","Puntos9","Puntos10","Puntos11","Puntos12","Puntos13","Puntos14","Puntos15","Puntos16","Puntos17","Puntos18","Puntos19","Puntos20","Puntos21","Puntos22","Puntos23","Puntos24","Puntos25","Puntos26","Puntos27","Puntos28","Puntos29","Puntos30","Puntos31"]
["Q",{"$f":"'Factor técnico'!B20","v":"Contratos de suministro, instalación y/o puesta en funcionamiento de sistemas de iluminación en edificaciones institucionales y/o públicas y/o estatales y/o gubernamentales"},{"$f":"'Factor técnico'!C20","v":15},{"$f":"Tabla183[[#This Row],[Puntos]]-0.5","v":14.5},{"$f":"Tabla183[[#This Row],[Puntos2]]-0.5","v":14},{"$f":"Tabla183[[#This Row],[Puntos3]]-0.5","v":13.5},{"$f":"Tabla183[[#This Row],[Puntos4]]-0.5","v":13},{"$f":"Tabla183[[#This Row],[Puntos5]]-0.5","v":12.5},{"$f":"Tabla183[[#This Row],[Puntos6]]-0.5","v":12},{"$f":"Tabla183[[#This Row],[Puntos7]]-0.5","v":11.5},{"$f":"Tabla183[[#This Row],[Puntos8]]-0.5","v":11},{"$f":"Tabla183[[#This Row],[Puntos9]]-0.5","v":10.5},{"$f":"Tabla183[[#This Row],[Puntos10]]-0.5","v":10},{"$f":"Tabla183[[#This Row],[Puntos11]]-0.5","v":9.5},{"$f":"Tabla183[[#This Row],[Puntos12]]-0.5","v":9},{"$f":"Tabla183[[#This Row],[Puntos13]]-0.5","v":8.5},{"$f":"Tabla183[[#This Row],[Puntos14]]-0.5","v":8},{"$f":"Tabla183[[#This Row],[Puntos15]]-0.5","v":7.5},{"$f":"Tabla183[[#This Row],[Puntos16]]-0.5","v":7},{"$f":"Tabla183[[#This Row],[Puntos17]]-0.5","v":6.5},{"$f":"Tabla183[[#This Row],[Puntos18]]-0.5","v":6},{"$f":"Tabla183[[#This Row],[Puntos19]]-0.5","v":5.5},{"$f":"Tabla183[[#This Row],[Puntos20]]-0.5","v":5},{"$f":"Tabla183[[#This Row],[Puntos21]]-0.5","v":4.5},{"$f":"Tabla183[[#This Row],[Puntos22]]-0.5","v":4},{"$f":"Tabla183[[#This Row],[Puntos23]]-0.5","v":3.5},{"$f":"Tabla183[[#This Row],[Puntos24]]-0.5","v":3},{"$f":"Tabla183[[#This Row],[Puntos25]]-0.5","v":2.5},{"$f":"Tabla183[[#This Row],[Puntos26]]-0.5","v":2},{"$f":"Tabla183[[#This Row],[Puntos27]]-0.5","v":1.5},{"$f":"Tabla183[[#This Row],[Puntos28]]-0.5","v":1},{"$f":"Tabla183[[#This Row],[Puntos29]]-0.5","v":0.5},{"$f":"Tabla183[[#This Row],[Puntos30]]-0.5","v":0}]
[]
[null,null,{"$f":"SUM(C2:C50)","v":535}]

{"sheet":"Estímulo-Discap-Empren","index":10,"n_rows":7,"n_cols":10,"rows_kept":7,"merged":[[0,4,0,6],[0,7,0,9]]}
[{"$nulls":4},"UNION TEMPORAL GESTION INTEGRAL C5",null,null,"UNON TEMPORAL SEGURIDAD VIPE 2025"]
["ITEM","Criterios de Calidad","PUNTAJE MAXIMO EVALUABLE",null,"UT2","FOLIO","OBSERVACIONES","UT3","FOLIO","OBSERVACIONES"]
[]
["A","Estímulo a la industria Nacional Colombiana",100,null,100,"2087-2109",null,100,"2358-2389"]
["B","Personal con discapacidad",10,null,10,"2110-2122",null,10,"2391-2400"]
["C","Emprendimientos y empresas de mujeres",2,null,2,"2126-2201",null,2,"2402-2426"]
[null,"TOTAL",{"$f":"SUM(C3:C6)","v":112}]